[Event "Titled Tuesday Blitz July 25 Early 2023"]
[White "Dinu, Dumitru-Daniel"]
[Black "Matinian, Nikita"]
[WhiteFideId "1208403"]
[BlackFideId "24129100"]
[WhiteElo "2461"]
[BlackElo "2742"]
[Result "0-1"]
[Round "5"]
[TimeControl "180+2"]
[Date "2023.07.25"]
[WhiteClock "0:00:00"]
[BlackClock "0:01:58"]
[Board "62"]

1. d4 {[%clk 0:03:00]}  Nf6 {[%clk 0:02:59]} 2. c4 {[%clk 0:03:00]}  g6 {[%clk 0:02:59]} 3. Nc3 {[%clk 0:02:52]}  Bg7 {[%clk 0:03:00]} 4. e4 {[%clk 0:02:52]}  d6 {[%clk 0:03:00]} 5. Nf3 {[%clk 0:02:44]}  O-O {[%clk 0:03:00]} 6. Be2 {[%clk 0:02:43]}  e5 {[%clk 0:03:00]} 7. dxe5 {[%clk 0:02:39]}  dxe5 {[%clk 0:02:59]} 8. Qxd8 {[%clk 0:02:37]}  Rxd8 {[%clk 0:03:00]} 9. Bg5 {[%clk 0:02:23]}  Re8 {[%clk 0:02:58]} 10. Nd5 {[%clk 0:02:01]}  Nxd5 {[%clk 0:02:58]} 11. cxd5 {[%clk 0:02:02]}  c6 {[%clk 0:02:59]} 12. Bc4 {[%clk 0:01:56]}  cxd5 {[%clk 0:02:50]} 13. Bxd5 {[%clk 0:01:57]}  Na6 {[%clk 0:02:50]} 14. O-O {[%clk 0:01:56]}  Nc7 {[%clk 0:02:41]} 15. Bb3 {[%clk 0:01:55]}  Be6 {[%clk 0:02:33]} 16. Bxe6 {[%clk 0:01:53]}  Nxe6 {[%clk 0:02:32]} 17. Be3 {[%clk 0:01:54]}  Nd4 {[%clk 0:02:25]} 18. Rfd1 {[%clk 0:01:30]}  a5 {[%clk 0:02:24]} 19. Nxd4 {[%clk 0:01:25]}  exd4 {[%clk 0:02:24]} 20. Bxd4 {[%clk 0:01:25]}  Rxe4 {[%clk 0:02:25]} 21. Bxg7 {[%clk 0:01:22]}  Kxg7 {[%clk 0:02:26]} 22. Rd7 {[%clk 0:01:21]}  Rb4 {[%clk 0:02:26]} 23. b3 {[%clk 0:00:53]}  a4 {[%clk 0:02:23]} 24. bxa4 {[%clk 0:00:53]}  Raxa4 {[%clk 0:02:20]} 25. h3 {[%clk 0:00:52]}  Rb2 {[%clk 0:02:17]} 26. a3 {[%clk 0:00:21]}  b5 {[%clk 0:02:18]} 27. Rb7 {[%clk 0:00:14]}  b4 {[%clk 0:02:10]} 28. g4 {[%clk 0:00:12]}  Rxa3 {[%clk 0:02:08]} 29. Rc1 {[%clk 0:00:06]}  Rxh3 {[%clk 0:02:07]} 30. Kg2 {[%clk 0:00:04]}  Rc3 {[%clk 0:02:05]} 31. Rxb4 {[%clk 0:00:02]}  Rxf2+ {[%clk 0:02:05]} 32. Kxf2 {[%clk 0:00:02]}  Rxc1 {[%clk 0:02:05]} 33. g5 {[%clk 0:00:02]}  Rc5 {[%clk 0:02:05]} 34. Rg4 {[%clk 0:00:02]}  Rf5+ {[%clk 0:02:05]} 35. Kg3 {[%clk 0:00:02]}  h5 {[%clk 0:02:04]} 36. gxh6+ {[%clk 0:00:02]}  Kxh6 {[%clk 0:02:05]} 37. Rb4 {[%clk 0:00:02]}  Rg5+ {[%clk 0:02:03]} 38. Kh3 {[%clk 0:00:02]}  f5 {[%clk 0:02:02]} 39. Rf4 {[%clk 0:00:02]}  Rh5+ {[%clk 0:02:02]} 40. Kg3 {[%clk 0:00:01]}  Kg5 {[%clk 0:02:03]} 41. Rf2 {[%clk 0:00:01]}  Rh8 {[%clk 0:02:02]} 42. Rd2 {[%clk 0:00:01]}  Ra8 {[%clk 0:02:01]} 43. Rd3 {[%clk 0:00:01]}  Ra4 {[%clk 0:02:01]} 44. Rc3 {[%clk 0:00:01]}  Ra5 {[%clk 0:01:59]} 45. Kf3 {[%clk 0:00:01]}  f4 {[%clk 0:01:58]} 46. Rb3 {[%clk 0:00:00]}  Kf5 {[%clk 0:01:58]} 0-1


[Site "https://www.chess.com"]

[Event "Titled Tuesday Blitz July 25 Early 2023"]
[White "Svane, Rasmus"]
[Black "Senft, Sean"]
[WhiteFideId "4657101"]
[BlackFideId "2044960"]
[WhiteElo "2966"]
[BlackElo "2308"]
[Result "1-0"]
[Round "5"]
[TimeControl "180+2"]
[Date "2023.07.25"]
[WhiteClock "0:00:19"]
[BlackClock "0:00:00"]
[Board "64"]

1. Nf3 {[%clk 0:03:00]}  d5 {[%clk 0:02:59]} 2. g3 {[%clk 0:03:01]}  c6 {[%clk 0:02:59]} 3. Bg2 {[%clk 0:03:01]}  Nf6 {[%clk 0:02:59]} 4. O-O {[%clk 0:03:01]}  Bg4 {[%clk 0:03:00]} 5. h3 {[%clk 0:03:02]}  Bxf3 {[%clk 0:03:00]} 6. Bxf3 {[%clk 0:03:02]}  e6 {[%clk 0:02:56]} 7. d3 {[%clk 0:03:00]}  Nbd7 {[%clk 0:02:56]} 8. e4 {[%clk 0:03:00]}  Be7 {[%clk 0:02:50]} 9. Nd2 {[%clk 0:02:58]}  O-O {[%clk 0:02:51]} 10. d4 {[%clk 0:02:57]}  dxe4 {[%clk 0:02:50]} 11. Nxe4 {[%clk 0:02:58]}  Nxe4 {[%clk 0:02:50]} 12. Bxe4 {[%clk 0:02:59]}  e5 {[%clk 0:02:32]} 13. dxe5 {[%clk 0:02:52]}  Nxe5 {[%clk 0:02:33]} 14. Bxh7+ {[%clk 0:02:48]}  Kxh7 {[%clk 0:02:29]} 15. Qh5+ {[%clk 0:02:49]}  Kg8 {[%clk 0:02:30]} 16. Qxe5 {[%clk 0:02:50]}  Bf6 {[%clk 0:02:27]} 17. Qf5 {[%clk 0:02:36]}  Qb6 {[%clk 0:02:18]} 18. c3 {[%clk 0:02:34]}  Rfe8 {[%clk 0:02:16]} 19. Qc2 {[%clk 0:02:12]}  Re6 {[%clk 0:02:11]} 20. Be3 {[%clk 0:02:08]}  Qb5 {[%clk 0:02:05]} 21. Rad1 {[%clk 0:01:56]}  Rae8 {[%clk 0:02:04]} 22. Rd2 {[%clk 0:01:43]}  Bg5 {[%clk 0:02:03]} 23. Bxg5 {[%clk 0:01:40]}  Qxg5 {[%clk 0:02:03]} 24. h4 {[%clk 0:01:33]}  Qg4 {[%clk 0:02:00]} 25. Qd1 {[%clk 0:01:14]}  Qh3 {[%clk 0:01:53]} 26. Qf3 {[%clk 0:01:07]}  Re1 {[%clk 0:01:46]} 27. Qg2 {[%clk 0:01:07]}  Rxf1+ {[%clk 0:01:30]} 28. Qxf1 {[%clk 0:01:08]}  Qe6 {[%clk 0:01:22]} 29. Qd3 {[%clk 0:01:04]}  Qxa2 {[%clk 0:01:14]} 30. Kg2 {[%clk 0:01:04]}  Qe6 {[%clk 0:01:11]} 31. b4 {[%clk 0:01:02]}  g6 {[%clk 0:00:48]} 32. Qf3 {[%clk 0:01:02]}  a6 {[%clk 0:00:39]} 33. Rd4 {[%clk 0:01:01]}  Qe2 {[%clk 0:00:35]} 34. Qf6 {[%clk 0:00:50]}  Qe6 {[%clk 0:00:33]} 35. Qf4 {[%clk 0:00:42]}  Qe5 {[%clk 0:00:33]} 36. Qf3 {[%clk 0:00:37]}  Qe2 {[%clk 0:00:32]} 37. Rd7 {[%clk 0:00:36]}  Qxf3+ {[%clk 0:00:20]} 38. Kxf3 {[%clk 0:00:37]}  Rb8 {[%clk 0:00:15]} 39. Rc7 {[%clk 0:00:31]}  a5 {[%clk 0:00:04]} 40. bxa5 {[%clk 0:00:28]}  Ra8 {[%clk 0:00:04]} 41. Rxb7 {[%clk 0:00:28]}  Rxa5 {[%clk 0:00:05]} 42. Ke4 {[%clk 0:00:22]}  Rc5 {[%clk 0:00:04]} 43. Kd4 {[%clk 0:00:22]}  Rd5+ {[%clk 0:00:04]} 44. Kc4 {[%clk 0:00:22]}  Rf5 {[%clk 0:00:03]} 45. f4 {[%clk 0:00:22]}  Rf6 {[%clk 0:00:02]} 46. Kc5 {[%clk 0:00:19]}  Re6 {[%clk 0:00:02]} 47. c4 {[%clk 0:00:19]}  Kf8 {[%clk 0:00:01]} 48. Rb3 {[%clk 0:00:18]}  Ke7 {[%clk 0:00:00]} 49. Rd3 {[%clk 0:00:19]} 1-0


[Site "https://www.chess.com"]

[Event "Titled Tuesday Blitz July 25 Early 2023"]
[White "Ilkhomi, Jaloliddin"]
[Black "Kaasen, Tor Fredrik"]
[WhiteFideId "14700948"]
[BlackFideId "1516647"]
[WhiteElo "2569"]
[BlackElo "2821"]
[Result "1-0"]
[Round "5"]
[TimeControl "180+2"]
[Date "2023.07.25"]
[WhiteClock "0:01:54"]
[BlackClock "0:02:02"]
[Board "68"]

1. d4 {[%clk 0:03:00]}  Nf6 {[%clk 0:02:59]} 2. Nf3 {[%clk 0:03:00]}  g6 {[%clk 0:03:00]} 3. Bg5 {[%clk 0:02:56]}  Bg7 {[%clk 0:03:00]} 4. Nbd2 {[%clk 0:02:57]}  d5 {[%clk 0:03:00]} 5. c3 {[%clk 0:02:57]}  O-O {[%clk 0:03:01]} 6. e3 {[%clk 0:02:57]}  c5 {[%clk 0:03:00]} 7. Bd3 {[%clk 0:02:58]}  Nc6 {[%clk 0:03:00]} 8. O-O {[%clk 0:02:58]}  b6 {[%clk 0:03:01]} 9. Re1 {[%clk 0:02:58]}  Bb7 {[%clk 0:03:01]} 10. dxc5 {[%clk 0:02:56]}  bxc5 {[%clk 0:03:02]} 11. e4 {[%clk 0:02:56]}  dxe4 {[%clk 0:02:50]} 12. Nxe4 {[%clk 0:02:57]}  Nxe4 {[%clk 0:02:48]} 13. Bxe4 {[%clk 0:02:58]}  Qb6 {[%clk 0:02:48]} 14. Qb3 {[%clk 0:02:50]}  Rfd8 {[%clk 0:02:43]} 15. Bxe7 {[%clk 0:02:34]}  Re8 {[%clk 0:02:30]} 16. Qxf7+ {[%clk 0:02:30]}  Kh8 {[%clk 0:02:24]} 17. Bf6 {[%clk 0:02:27]}  Rg8 {[%clk 0:02:19]} 18. Bxg6 {[%clk 0:01:54]}  hxg6 {[%clk 0:02:02]} 19. Qxg6 {[%clk 0:01:54]} 1-0


[Site "https://www.chess.com"]

[Event "Titled Tuesday Blitz July 25 Early 2023"]
[White "Nazari, Arad"]
[Black "Ambartsumova, Karina"]
[WhiteFideId "12577324"]
[BlackFideId "4166299"]
[WhiteElo "2780"]
[BlackElo "2550"]
[Result "0-1"]
[Round "5"]
[TimeControl "180+2"]
[Date "2023.07.25"]
[WhiteClock "0:00:03"]
[BlackClock "0:00:07"]
[Board "70"]

1. e4 {[%clk 0:03:00]}  e5 {[%clk 0:03:00]} 2. f4 {[%clk 0:03:01]}  d5 {[%clk 0:02:59]} 3. exd5 {[%clk 0:03:01]}  e4 {[%clk 0:02:57]} 4. d3 {[%clk 0:02:58]}  Nf6 {[%clk 0:02:41]} 5. dxe4 {[%clk 0:02:57]}  Nxe4 {[%clk 0:02:40]} 6. Nf3 {[%clk 0:02:58]}  Bc5 {[%clk 0:02:33]} 7. Qe2 {[%clk 0:02:53]}  Qe7 {[%clk 0:02:24]} 8. Be3 {[%clk 0:02:34]}  Nd7 {[%clk 0:01:48]} 9. Bxc5 {[%clk 0:02:23]}  Ndxc5 {[%clk 0:01:43]} 10. Nbd2 {[%clk 0:02:22]}  O-O {[%clk 0:01:37]} 11. O-O-O {[%clk 0:02:17]}  Re8 {[%clk 0:01:26]} 12. Nxe4 {[%clk 0:02:09]}  Nxe4 {[%clk 0:01:22]} 13. Nd2 {[%clk 0:01:53]}  Bf5 {[%clk 0:01:03]} 14. Nxe4 {[%clk 0:01:50]}  Bxe4 {[%clk 0:01:02]} 15. Qf2 {[%clk 0:01:38]}  a5 {[%clk 0:00:53]} 16. a3 {[%clk 0:01:33]}  Rad8 {[%clk 0:00:44]} 17. Bb5 {[%clk 0:01:29]}  c6 {[%clk 0:00:44]} 18. dxc6 {[%clk 0:01:19]}  bxc6 {[%clk 0:00:45]} 19. Rxd8 {[%clk 0:01:17]}  Rxd8 {[%clk 0:00:44]} 20. Bc4 {[%clk 0:01:16]}  Qf6 {[%clk 0:00:35]} 21. Re1 {[%clk 0:01:11]}  Bd5 {[%clk 0:00:26]} 22. Bxd5 {[%clk 0:00:53]}  cxd5 {[%clk 0:00:27]} 23. Re5 {[%clk 0:00:53]}  h6 {[%clk 0:00:25]} 24. g3 {[%clk 0:00:49]}  d4 {[%clk 0:00:22]} 25. Qe1 {[%clk 0:00:47]}  Qc6 {[%clk 0:00:20]} 26. Qe4 {[%clk 0:00:36]}  Qd7 {[%clk 0:00:20]} 27. Rxa5 {[%clk 0:00:25]}  d3 {[%clk 0:00:17]} 28. cxd3 {[%clk 0:00:19]}  Qc7+ {[%clk 0:00:16]} 29. Kd2 {[%clk 0:00:16]}  Qxa5+ {[%clk 0:00:17]} 30. Ke2 {[%clk 0:00:16]}  Qb6 {[%clk 0:00:17]} 31. b4 {[%clk 0:00:15]}  Qb5 {[%clk 0:00:17]} 32. Qc4 {[%clk 0:00:13]}  Qe8+ {[%clk 0:00:16]} 33. Kd2 {[%clk 0:00:13]}  Rc8 {[%clk 0:00:16]} 34. Qd5 {[%clk 0:00:11]}  Qa4 {[%clk 0:00:15]} 35. Qa2 {[%clk 0:00:10]}  Qc6 {[%clk 0:00:12]} 36. Qb3 {[%clk 0:00:06]}  Qc1+ {[%clk 0:00:10]} 37. Ke2 {[%clk 0:00:07]}  Re8+ {[%clk 0:00:09]} 38. Kf3 {[%clk 0:00:07]}  Qe3+ {[%clk 0:00:08]} 39. Kg4 {[%clk 0:00:07]}  Qe2+ {[%clk 0:00:08]} 40. Kh3 {[%clk 0:00:06]}  Qf1+ {[%clk 0:00:07]} 41. Kg4 {[%clk 0:00:05]}  h5+ {[%clk 0:00:07]} 42. Kg5 {[%clk 0:00:03]}  Qh3 {[%clk 0:00:06]} 43. Qd1 {[%clk 0:00:03]}  f6+ {[%clk 0:00:05]} 44. Kg6 {[%clk 0:00:04]}  Qg4+ {[%clk 0:00:04]} 45. Qxg4 {[%clk 0:00:04]}  hxg4 {[%clk 0:00:05]} 46. b5 {[%clk 0:00:05]}  Rd8 {[%clk 0:00:03]} 47. a4 {[%clk 0:00:04]}  Rxd3 {[%clk 0:00:04]} 48. b6 {[%clk 0:00:05]}  Rb3 {[%clk 0:00:04]} 49. a5 {[%clk 0:00:05]}  Rb5 {[%clk 0:00:05]} 50. f5 {[%clk 0:00:01]}  Rxa5 {[%clk 0:00:05]} 51. Kh5 {[%clk 0:00:01]}  Rb5 {[%clk 0:00:06]} 52. Kxg4 {[%clk 0:00:02]}  Rxb6 {[%clk 0:00:06]} 53. Kh5 {[%clk 0:00:03]}  Kf7 {[%clk 0:00:07]} 54. g4 {[%clk 0:00:03]}  Rb2 {[%clk 0:00:08]} 55. h4 {[%clk 0:00:04]}  Rb5 {[%clk 0:00:07]} 56. g5 {[%clk 0:00:03]}  Rxf5 {[%clk 0:00:07]} 0-1


[Site "https://www.chess.com"]

[Event "Titled Tuesday Blitz July 25 Early 2023"]
[White "Mei, Austin"]
[Black "Kosteniuk, Alexandra"]
[WhiteFideId "30948479"]
[BlackFideId "4128125"]
[WhiteElo "2503"]
[BlackElo "2774"]
[Result "0-1"]
[Round "5"]
[TimeControl "180+2"]
[Date "2023.07.25"]
[WhiteClock "0:00:12"]
[BlackClock "0:00:12"]
[Board "71"]

1. e4 {[%clk 0:03:00]}  c6 {[%clk 0:02:59]} 2. d4 {[%clk 0:02:58]}  d5 {[%clk 0:03:00]} 3. f3 {[%clk 0:02:58]}  e6 {[%clk 0:02:59]} 4. Nc3 {[%clk 0:02:58]}  Bb4 {[%clk 0:02:58]} 5. Bd2 {[%clk 0:02:58]}  Ne7 {[%clk 0:02:56]} 6. Bd3 {[%clk 0:02:57]}  dxe4 {[%clk 0:02:53]} 7. Nxe4 {[%clk 0:02:55]}  Bxd2+ {[%clk 0:02:49]} 8. Qxd2 {[%clk 0:02:56]}  Qxd4 {[%clk 0:02:49]} 9. Ne2 {[%clk 0:02:56]}  Qd8 {[%clk 0:02:37]} 10. O-O-O {[%clk 0:02:55]}  Nd5 {[%clk 0:02:07]} 11. c4 {[%clk 0:02:13]}  Nf6 {[%clk 0:02:07]} 12. Qf4 {[%clk 0:02:14]}  Nxe4 {[%clk 0:01:56]} 13. Bxe4 {[%clk 0:02:14]}  Qe7 {[%clk 0:01:55]} 14. Qg3 {[%clk 0:01:50]}  O-O {[%clk 0:01:46]} 15. Nc3 {[%clk 0:01:46]}  Nd7 {[%clk 0:01:44]} 16. h4 {[%clk 0:01:42]}  Nf6 {[%clk 0:01:21]} 17. Bc2 {[%clk 0:01:39]}  b5 {[%clk 0:01:19]} 18. h5 {[%clk 0:01:36]}  h6 {[%clk 0:01:15]} 19. cxb5 {[%clk 0:01:20]}  cxb5 {[%clk 0:01:15]} 20. Nxb5 {[%clk 0:01:21]}  Bb7 {[%clk 0:01:05]} 21. Qd6 {[%clk 0:01:20]}  Qxd6 {[%clk 0:01:03]} 22. Nxd6 {[%clk 0:01:21]}  Bd5 {[%clk 0:01:03]} 23. Kb1 {[%clk 0:01:15]}  Rfd8 {[%clk 0:01:02]} 24. Nb5 {[%clk 0:01:15]}  Bc4 {[%clk 0:00:58]} 25. Nd6 {[%clk 0:01:08]}  Bd5 {[%clk 0:00:47]} 26. Nb5 {[%clk 0:01:08]}  Rab8 {[%clk 0:00:47]} 27. Nc3 {[%clk 0:01:07]}  Bc6 {[%clk 0:00:46]} 28. Bb3 {[%clk 0:00:52]}  Kf8 {[%clk 0:00:42]} 29. Kc2 {[%clk 0:00:51]}  Ke7 {[%clk 0:00:41]} 30. Bc4 {[%clk 0:00:43]}  Rxd1 {[%clk 0:00:39]} 31. Nxd1 {[%clk 0:00:42]}  Rd8 {[%clk 0:00:32]} 32. Ne3 {[%clk 0:00:40]}  Rd4 {[%clk 0:00:31]} 33. Kc3 {[%clk 0:00:38]}  Rd7 {[%clk 0:00:31]} 34. b4 {[%clk 0:00:37]}  Rc7 {[%clk 0:00:32]} 35. Kb3 {[%clk 0:00:37]}  Nd7 {[%clk 0:00:32]} 36. Rc1 {[%clk 0:00:30]}  Nb6 {[%clk 0:00:23]} 37. Bb5 {[%clk 0:00:26]}  Kd6 {[%clk 0:00:22]} 38. Bxc6 {[%clk 0:00:19]}  Rxc6 {[%clk 0:00:22]} 39. Rd1+ {[%clk 0:00:20]}  Ke7 {[%clk 0:00:17]} 40. a4 {[%clk 0:00:21]}  Nd7 {[%clk 0:00:17]} 41. a5 {[%clk 0:00:21]}  Rc7 {[%clk 0:00:14]} 42. Nc4 {[%clk 0:00:21]}  Nf6 {[%clk 0:00:13]} 43. b5 {[%clk 0:00:20]}  Nd5 {[%clk 0:00:13]} 44. Rd4 {[%clk 0:00:18]}  Rb7 {[%clk 0:00:13]} 45. Ka4 {[%clk 0:00:18]}  Nc3+ {[%clk 0:00:13]} 46. Kb4 {[%clk 0:00:17]}  Nxb5 {[%clk 0:00:13]} 47. Rg4 {[%clk 0:00:16]}  Nd6+ {[%clk 0:00:12]} 48. Kc5 {[%clk 0:00:12]}  Rc7+ {[%clk 0:00:12]} 0-1


[Site "https://www.chess.com"]

[Event "Titled Tuesday Blitz July 25 Early 2023"]
[White "Roberson, Peter T"]
[Black "Wagner, Dennis"]
[WhiteFideId "412384"]
[BlackFideId "24650684"]
[WhiteElo "2501"]
[BlackElo "2761"]
[Result "0-1"]
[Round "5"]
[TimeControl "180+2"]
[Date "2023.07.25"]
[WhiteClock "0:00:04"]
[BlackClock "0:00:08"]
[Board "72"]

1. e4 {[%clk 0:03:00]}  e5 {[%clk 0:02:59]} 2. Nf3 {[%clk 0:02:59]}  Nc6 {[%clk 0:02:59]} 3. Bc4 {[%clk 0:02:57]}  Bc5 {[%clk 0:02:58]} 4. O-O {[%clk 0:02:55]}  Nf6 {[%clk 0:02:58]} 5. d3 {[%clk 0:02:52]}  d6 {[%clk 0:02:56]} 6. c3 {[%clk 0:02:51]}  h6 {[%clk 0:02:52]} 7. b4 {[%clk 0:02:49]}  Bb6 {[%clk 0:02:52]} 8. a4 {[%clk 0:02:49]}  a5 {[%clk 0:02:52]} 9. b5 {[%clk 0:02:50]}  Ne7 {[%clk 0:02:53]} 10. Re1 {[%clk 0:02:34]}  O-O {[%clk 0:02:50]} 11. Nbd2 {[%clk 0:02:34]}  Ng6 {[%clk 0:02:47]} 12. Bb3 {[%clk 0:02:34]}  c6 {[%clk 0:02:39]} 13. Nc4 {[%clk 0:02:33]}  Bc7 {[%clk 0:02:37]} 14. d4 {[%clk 0:02:27]}  Re8 {[%clk 0:02:20]} 15. bxc6 {[%clk 0:02:07]}  bxc6 {[%clk 0:02:18]} 16. Qc2 {[%clk 0:02:00]}  Bg4 {[%clk 0:01:29]} 17. Nfd2 {[%clk 0:01:46]}  exd4 {[%clk 0:01:25]} 18. cxd4 {[%clk 0:01:46]}  d5 {[%clk 0:01:25]} 19. Ne3 {[%clk 0:01:37]}  dxe4 {[%clk 0:01:24]} 20. Nxg4 {[%clk 0:01:21]}  Nxg4 {[%clk 0:01:23]} 21. h3 {[%clk 0:01:22]}  Nxf2 {[%clk 0:01:00]} 22. Kxf2 {[%clk 0:01:14]}  Qxd4+ {[%clk 0:00:58]} 23. Kf1 {[%clk 0:01:11]}  Bb6 {[%clk 0:00:35]} 24. Nc4 {[%clk 0:00:56]}  Qg1+ {[%clk 0:00:33]} 25. Ke2 {[%clk 0:00:56]}  Qxg2+ {[%clk 0:00:31]} 26. Kd1 {[%clk 0:00:56]}  Rad8+ {[%clk 0:00:29]} 27. Bd2 {[%clk 0:00:56]}  e3 {[%clk 0:00:24]} 28. Re2 {[%clk 0:00:43]}  exd2 {[%clk 0:00:16]} 29. Qd3 {[%clk 0:00:03]}  Qf1+ {[%clk 0:00:10]} 30. Kc2 {[%clk 0:00:03]}  Qxa1 {[%clk 0:00:09]} 31. Qxg6 {[%clk 0:00:04]}  d1=Q# {[%clk 0:00:08]} 0-1


[Site "https://www.chess.com"]

[Event "Titled Tuesday Blitz July 25 Early 2023"]
[White "Kuznetsov, Felix"]
[Black "LangesNasenhaar"]
[WhiteFideId "34147990"]
[WhiteElo "2710"]
[BlackElo "2493"]
[Result "1-0"]
[Round "5"]
[TimeControl "180+2"]
[Date "2023.07.25"]
[WhiteClock "0:01:27"]
[BlackClock "0:01:30"]
[Board "75"]

1. e4 {[%clk 0:02:59]}  d6 {[%clk 0:02:59]} 2. d4 {[%clk 0:02:59]}  Nf6 {[%clk 0:03:00]} 3. Nc3 {[%clk 0:02:55]}  e5 {[%clk 0:03:00]} 4. Nge2 {[%clk 0:02:55]}  Be7 {[%clk 0:02:56]} 5. h3 {[%clk 0:02:55]}  c6 {[%clk 0:02:56]} 6. a4 {[%clk 0:02:55]}  O-O {[%clk 0:02:54]} 7. g3 {[%clk 0:02:55]}  Re8 {[%clk 0:02:50]} 8. Bg2 {[%clk 0:02:55]}  Bf8 {[%clk 0:02:50]} 9. Be3 {[%clk 0:02:54]}  a5 {[%clk 0:02:49]} 10. O-O {[%clk 0:02:53]}  Na6 {[%clk 0:02:49]} 11. Qd2 {[%clk 0:02:53]}  Nb4 {[%clk 0:02:48]} 12. Rad1 {[%clk 0:02:53]}  Qc7 {[%clk 0:02:46]} 13. f4 {[%clk 0:02:47]}  exd4 {[%clk 0:02:43]} 14. Bxd4 {[%clk 0:02:40]}  Nd7 {[%clk 0:02:36]} 15. g4 {[%clk 0:02:40]}  Nc5 {[%clk 0:02:29]} 16. Ng3 {[%clk 0:02:36]}  Be6 {[%clk 0:02:21]} 17. b3 {[%clk 0:02:28]}  Rad8 {[%clk 0:02:13]} 18. f5 {[%clk 0:02:28]}  Bc8 {[%clk 0:02:11]} 19. Nh5 {[%clk 0:02:29]}  d5 {[%clk 0:02:02]} 20. Qg5 {[%clk 0:01:45]}  h6 {[%clk 0:01:45]} 21. Nf6+ {[%clk 0:01:44]}  Kh8 {[%clk 0:01:44]} 22. Qxh6+ {[%clk 0:01:36]}  gxh6 {[%clk 0:01:44]} 23. Nxe8+ {[%clk 0:01:36]}  Kg8 {[%clk 0:01:40]} 24. Nf6+ {[%clk 0:01:27]}  Kh8 {[%clk 0:01:38]} 25. Nfxd5+ {[%clk 0:01:27]}  Kh7 {[%clk 0:01:30]} 26. Nxc7 {[%clk 0:01:27]} 1-0


[Site "https://www.chess.com"]

[Event "Titled Tuesday Blitz July 25 Early 2023"]
[White "Itkis, Boris"]
[Black "Jaracz, Pawel"]
[WhiteFideId "1209167"]
[BlackFideId "1102222"]
[WhiteElo "2463"]
[BlackElo "2703"]
[Result "1-0"]
[Round "5"]
[TimeControl "180+2"]
[Date "2023.07.25"]
[WhiteClock "0:00:16"]
[BlackClock "0:00:05"]
[Board "76"]

1. c4 {[%clk 0:03:00]}  e5 {[%clk 0:02:56]} 2. Nf3 {[%clk 0:03:01]}  Nc6 {[%clk 0:02:54]} 3. Nc3 {[%clk 0:03:01]}  Nf6 {[%clk 0:02:53]} 4. e4 {[%clk 0:03:00]}  d6 {[%clk 0:02:42]} 5. d4 {[%clk 0:03:00]}  Bg4 {[%clk 0:02:41]} 6. d5 {[%clk 0:03:00]}  Nd4 {[%clk 0:02:40]} 7. Be3 {[%clk 0:02:56]}  Bxf3 {[%clk 0:02:37]} 8. gxf3 {[%clk 0:02:56]}  g6 {[%clk 0:02:24]} 9. Nb5 {[%clk 0:02:26]}  Nxb5 {[%clk 0:01:56]} 10. cxb5 {[%clk 0:02:27]}  Bg7 {[%clk 0:01:55]} 11. Rc1 {[%clk 0:02:26]}  O-O {[%clk 0:01:55]} 12. Qc2 {[%clk 0:02:25]}  Rc8 {[%clk 0:01:51]} 13. Bh3 {[%clk 0:02:25]}  Qe7 {[%clk 0:01:41]} 14. Bxc8 {[%clk 0:02:23]}  Rxc8 {[%clk 0:01:42]} 15. Bxa7 {[%clk 0:02:21]}  Nh5 {[%clk 0:01:41]} 16. Be3 {[%clk 0:02:15]}  Qh4 {[%clk 0:01:40]} 17. b6 {[%clk 0:02:13]}  Nf4 {[%clk 0:01:11]} 18. Bxf4 {[%clk 0:01:35]}  exf4 {[%clk 0:01:03]} 19. Qxc7 {[%clk 0:01:32]}  Rf8 {[%clk 0:01:00]} 20. Qxb7 {[%clk 0:01:25]}  Bd4 {[%clk 0:01:00]} 21. Rf1 {[%clk 0:01:24]}  Kg7 {[%clk 0:00:47]} 22. Rc8 {[%clk 0:01:17]}  Rxc8 {[%clk 0:00:45]} 23. Qxc8 {[%clk 0:01:18]}  Bxb6 {[%clk 0:00:46]} 24. Ke2 {[%clk 0:01:14]}  Qf6 {[%clk 0:00:44]} 25. Qc3 {[%clk 0:01:12]}  Bd4 {[%clk 0:00:44]} 26. Qd3 {[%clk 0:01:10]}  Bxb2 {[%clk 0:00:44]} 27. a4 {[%clk 0:01:11]}  Qd8 {[%clk 0:00:40]} 28. Rb1 {[%clk 0:01:08]}  Be5 {[%clk 0:00:37]} 29. Qd2 {[%clk 0:00:55]}  Qc8 {[%clk 0:00:33]} 30. a5 {[%clk 0:00:54]}  Qc4+ {[%clk 0:00:33]} 31. Qd3 {[%clk 0:00:41]}  Qa2+ {[%clk 0:00:33]} 32. Kf1 {[%clk 0:00:41]}  Qxa5 {[%clk 0:00:33]} 33. Rb7 {[%clk 0:00:39]}  Qd8 {[%clk 0:00:30]} 34. Qb5 {[%clk 0:00:37]}  Qf6 {[%clk 0:00:23]} 35. Qd7 {[%clk 0:00:36]}  h5 {[%clk 0:00:23]} 36. Qe7 {[%clk 0:00:36]}  Qxe7 {[%clk 0:00:19]} 37. Rxe7 {[%clk 0:00:37]}  Kf6 {[%clk 0:00:19]} 38. Rb7 {[%clk 0:00:36]}  g5 {[%clk 0:00:18]} 39. h3 {[%clk 0:00:36]}  Bd4 {[%clk 0:00:18]} 40. Ke2 {[%clk 0:00:37]}  Bc5 {[%clk 0:00:18]} 41. Rc7 {[%clk 0:00:35]}  Bd4 {[%clk 0:00:17]} 42. Rc6 {[%clk 0:00:34]}  Be5 {[%clk 0:00:18]} 43. Kd3 {[%clk 0:00:34]}  Kg6 {[%clk 0:00:17]} 44. Ra6 {[%clk 0:00:33]}  Kf6 {[%clk 0:00:13]} 45. Kc4 {[%clk 0:00:34]}  Kg6 {[%clk 0:00:08]} 46. Kb5 {[%clk 0:00:34]}  g4 {[%clk 0:00:09]} 47. hxg4 {[%clk 0:00:33]}  h4 {[%clk 0:00:09]} 48. Rc6 {[%clk 0:00:31]}  h3 {[%clk 0:00:08]} 49. Rc1 {[%clk 0:00:31]}  Kg5 {[%clk 0:00:08]} 50. Rh1 {[%clk 0:00:20]}  Kh4 {[%clk 0:00:08]} 51. Kc6 {[%clk 0:00:20]}  f6 {[%clk 0:00:09]} 52. Kd7 {[%clk 0:00:20]}  Bd4 {[%clk 0:00:08]} 53. Ke6 {[%clk 0:00:20]}  Bxf2 {[%clk 0:00:08]} 54. Kxf6 {[%clk 0:00:19]}  Bd4+ {[%clk 0:00:08]} 55. Kf5 {[%clk 0:00:19]}  Be5 {[%clk 0:00:07]} 56. g5 {[%clk 0:00:19]}  Kg3 {[%clk 0:00:08]} 57. g6 {[%clk 0:00:19]}  Kg2 {[%clk 0:00:09]} 58. Rb1 {[%clk 0:00:18]}  Kxf3 {[%clk 0:00:07]} 59. Ke6 {[%clk 0:00:16]}  h2 {[%clk 0:00:07]} 60. Kf7 {[%clk 0:00:15]}  Kg2 {[%clk 0:00:07]} 61. g7 {[%clk 0:00:15]}  Bxg7 {[%clk 0:00:07]} 62. Kxg7 {[%clk 0:00:16]}  f3 {[%clk 0:00:07]} 63. e5 {[%clk 0:00:16]}  f2 {[%clk 0:00:06]} 64. exd6 {[%clk 0:00:16]}  f1=Q {[%clk 0:00:07]} 65. Rxf1 {[%clk 0:00:17]}  Kxf1 {[%clk 0:00:07]} 66. d7 {[%clk 0:00:17]}  h1=Q {[%clk 0:00:08]} 67. d8=Q {[%clk 0:00:17]}  Qg2+ {[%clk 0:00:08]} 68. Kf7 {[%clk 0:00:17]}  Qe4 {[%clk 0:00:08]} 69. Qf6+ {[%clk 0:00:16]}  Kg1 {[%clk 0:00:05]} 70. Qg6+ {[%clk 0:00:16]} 1-0


[Site "https://www.chess.com"]